fUSD/lending_fUSD_20241118
["ID","MTS","AMOUNT","RATE_DAILY","PERIOD"]
[342458360,1731897038339,-150.0,9.984e-05,2]
[342458361,1731897038352,-150.0,9.987e-05,2]
[342458362,1731897038362,-710.1378396,9.987e-05,2]
[342458363,1731897038372,-150.0,9.988e-05,2]
[342458364,1731897038381,-433.9642794,9.989e-05,2]
[342458365,1731897038391,-296.2750671,9.989e-05,2]
[342458366,1731897038400,-150.0,9.99e-05,2]
[342458367,1731897038411,-609.0371903,9.993e-05,2]
[342458368,1731897038420,-507.9365411,9.993e-05,2]
[342458369,1731897038431,-406.8358918,9.993e-05,2]
[342458370,1731897038441,-150.0,9.993e-05,2]
[342458371,1731897038451,-430.6274022,9.993e-05,2]
[342458372,1731897038461,-427.290525,9.993e-05,2]
[342458373,1731897038470,-423.9536479,9.993e-05,2]
[342458374,1731897038479,-293.9969222,9.993e-05,2]
[342458375,1731897038488,-291.7187773,9.993e-05,2]
[342458376,1731897038498,-289.4406324,9.993e-05,2]
[342458377,1731897038507,-150.0,9.996e-05,2]
[342458378,1731897038517,-481.57,9.997e-05,2]
[342458379,1731897038527,-706.24006337,9.999e-05,2]
[342458380,1731897038536,-1233.51498052,9.999e-05,3]
[342458381,1731897038546,-150.0,9.999e-05,2]
[342458382,1731897038555,-1287.5141184,9.999e-05,2]
[342458383,1731897038565,-677.68,9.999e-05,2]
[342458384,1731897038575,-134541.39829903,0.0001,2]
[342458385,1731897038584,-3467.33038736,0.0001,2]
[342458386,1731897038594,-5508250.1411031,0.0001,2]
[342458387,1731897038607,-5738.10427105,0.0001,2]
[342458388,1731897038731,-42050.07336547,0.0001,2]
[342458389,1731897039809,-603.11676401,0.0001,2]
[342458390,1731897039824,-452.81286236,0.0001,2]
[342458391,1731897039835,-476.33268518,0.0001,2]
[342458392,1731897039846,-1695.25463052,0.0001,2]
[342458393,1731897039974,-1054.73219839,0.0001,2]
[342458394,1731897039986,-1094.23143584,0.0001,2]
[342458395,1731897039998,-909.32960377,0.0001,2]
[342458396,1731897040010,-616.525332,0.0001,2]
[342458397,1731897040021,-173307.60157545,0.0001,2]
[342458398,1731897040032,-12252.11953555,0.0001,2]
[342458399,1731897040044,-14424.48245563,0.0001,2]
[342458404,1731897042687,-114204.84044794,0.0001,2]
[342458405,1731897042806,-520.2443575,0.0001,2]
[342458406,1731897042818,-28442.39826175,0.0001,2]
[342458407,1731897042829,-9272.95588208,0.0001,2]
[342458408,1731897042992,-147.82524442,0.0001,2]
[342458409,1731897043004,-310.0737724,0.0001,2]
[342458413,1731897045676,-22200.000002,0.0001,2]
[342458414,1731897045690,-78303.3365941,0.0001,2]
[342458415,1731897045806,-687601.42745379,0.0001,2]
[342458416,1731897045817,-596.31409382,0.0001,2]
[342458417,1731897045953,-912.2474244,0.0001,2]
[342458426,1731897071739,1163.15,8.219e-05,2]
[342458427,1731897220305,162.65,0.0001,60]
[342458434,1731897444551,1836.7151506,0.00023,120]
[342458435,1731897490748,-150.0,8.9e-05,2]
[342458437,1731897797882,1104.99,8.219e-05,2]
[342458438,1731897932473,2785.03168495,0.00023,120]
[342458439,1731897996748,190.0,0.00012,15]
[342458440,1731898071244,199.54,8.504e-05,2]
[342458441,1731898146156,-300.0,8.79e-05,2]
[342458442,1731898146179,-250.0,8.791e-05,2]
[342458443,1731898146201,-5047.22,8.791e-05,2]
[342458444,1731898146223,-316.22,8.838e-05,2]
[342458445,1731898146244,-150.0,8.838e-05,2]
[342458446,1731898146266,-150.27,8.855e-05,2]
[342458447,1731898146288,-250.0,8.876e-05,2]
[342458448,1731898146319,-608.94,8.897e-05,2]
[342458449,1731898146341,-186.93730361,8.9e-05,2]
[342458450,1731898152099,-663.06269639,8.9e-05,2]
[342458451,1731898152121,-150.0,8.904e-05,2]
[342458452,1731898152143,-165.64,8.924e-05,2]
[342458453,1731898152165,-165.64,8.933e-05,2]
[342458454,1731898152187,-165.64,8.942e-05,2]
[342458455,1731898152209,-165.64,8.951e-05,2]
[342458456,1731898152233,-165.64,8.96e-05,2]
[342458457,1731898152255,-165.64,8.969e-05,2]
[342458464,1731898231844,-896.53,9.041e-05,2]
[342458466,1731898231854,-1556.26,9.041e-05,2]
[342458471,1731898232398,-300.0,9.177e-05,2]
[342458472,1731898232412,-724.64,9.178e-05,2]
[342458473,1731898232423,-150.0,9.178e-05,2]
[342458474,1731898232432,-872.83,9.178e-05,2]
[342458475,1731898232442,-150.0,9.178e-05,2]
[342458476,1731898232452,-150.0,9.178e-05,2]
[342458477,1731898232462,-150.0,9.178e-05,2]
[342458478,1731898232472,-150.0,9.734e-05,2]
[342458479,1731898232481,-150.0,9.737e-05,2]
[342458480,1731898232491,-150.0,9.744e-05,2]
[342458481,1731898232501,-150.0,9.745e-05,2]
[342458482,1731898232510,-150.0,9.755e-05,2]
[342458483,1731898232520,-150.0,9.765e-05,2]
[342458484,1731898232531,-150.0,9.767e-05,2]
[342458485,1731898232543,-108.77429311,9.771e-05,2]
[342458486,1731898232578,-41.22570689,9.771e-05,2]
[342458487,1731898232588,-150.0,9.772e-05,2]
[342458488,1731898232598,-150.0,9.772e-05,2]
[342458489,1731898232609,-150.0,9.773e-05,2]
[342458490,1731898232619,-150.0,9.773e-05,2]
[342458491,1731898232629,-150.0,9.781e-05,2]
[342458492,1731898232639,-150.0,9.782e-05,2]
[342458493,1731898232648,-150.0,9.79e-05,2]
[342458494,1731898232658,-150.0,9.791e-05,2]
[342458495,1731898232668,-150.0,9.791e-05,2]
[342458496,1731898232680,-1089.09133117,9.8e-05,2]
[342458497,1731898232699,-5982.6319,9.8e-05,2]
[342458498,1731898232710,-976.4793,9.8e-05,2]
[342458499,1731898232719,-1139.50994652,9.8e-05,2]
[342458500,1731898232729,-150.0,9.805e-05,2]
[342458501,1731898232739,-150.0,9.82e-05,2]
[342458502,1731898232751,-150.0,9.822e-05,2]
[342458503,1731898232763,-150.0,9.85e-05,2]
[342458504,1731898232773,-150.0,9.883e-05,2]
[342458505,1731898232783,-150.0,9.884e-05,2]
[342458506,1731898232794,-150.0,9.887e-05,2]
[342458507,1731898232804,-510.4782,9.9e-05,2]
[342458508,1731898232813,-1276.2347,9.9e-05,2]
[342458509,1731898232823,-10003.9932,9.9e-05,2]
[342458510,1731898232834,-150.0,9.911e-05,2]
[342458511,1731898232845,-150.0,9.916e-05,2]
[342458512,1731898232854,-150.0,9.916e-05,2]
[342458513,1731898232864,-150.0,9.933e-05,2]
[342458514,1731898232874,-150.0,9.946e-05,2]
[342458515,1731898232884,-150.0,9.948e-05,2]
[342458516,1731898232893,-150.0,9.958e-05,2]
[342458517,1731898232905,-150.0,9.961e-05,2]
[342458518,1731898232915,-150.0,9.961e-05,2]
[342458519,1731898232924,-150.0,9.966e-05,2]
[342458520,1731898232934,-150.0,9.974e-05,2]
[342458521,1731898232945,-150.0,9.978e-05,2]
[342458522,1731898232955,-1867.812,9.98e-05,2]
[342458523,1731898232965,-175.87705133,9.981e-05,2]
[342458524,1731898232975,-150.0,9.984e-05,2]
[342458525,1731898232985,-150.0,9.986e-05,2]
[342458526,1731898232995,-572.04683064,9.988e-05,2]
[342458527,1731898233005,-394.3123729,9.988e-05,2]
[342458528,1731898233014,-365.4898013,9.993e-05,2]
[342458529,1731898233024,-336.6672297,9.993e-05,2]
[342458530,1731898233034,-307.8446581,9.993e-05,2]
[342458531,1731898233044,-150.0,9.995e-05,2]
[342458532,1731898233055,-1233.51498052,9.999e-05,3]
[342458533,1731898233066,-706.24006337,9.999e-05,2]
[342458534,1731898233077,-677.68,9.999e-05,2]
[342458535,1731898233088,-3467.33038736,0.0001,2]
[342458536,1731898233098,-528528.93745805,0.0001,2]
[342458537,1731898233110,-366.03,0.0001,2]
[342458538,1731898233125,-788.5,0.0001,2]
[342458539,1731898233227,-35301.55756449,0.0001,2]
[342458540,1731898233240,-13281.10962842,0.0001,2]
[342458557,1731898237948,-12612.22208144,0.0001,2]
[342458558,1731898237959,-2067.21978566,0.0001,2]
[342458560,1731898238222,-9261.52160548,0.0001,2]
[342458561,1731898238235,-62017.76763354,0.0001,2]
[342458562,1731898238246,-105429.83958685,0.0001,2]
[342458563,1731898238257,-5679218.61987427,0.0001,2]
[342458564,1731898238270,-8247.13928738,0.0001,2]
[342458565,1731898238282,-7436.68940509,0.0001,2]
[342458566,1731898238293,-3563.0206263,0.0001,2]
[342458567,1731898238402,-509.16789362,0.0001,2]
[342458572,1731898239811,-462.0,0.0001,2]
[342458594,1731898240116,-1986.34492326,0.0001,2]
[342458595,1731898240129,-377.81701404,0.0001,2]
[342458596,1731898240141,-936.45140607,0.0001,2]
[342458597,1731898240154,-146238.32789509,0.0001,2]
[342458598,1731898240167,-560.2733022,0.0001,2]
[342458599,1731898240178,-64325.9026096,0.0001,2]
[342458600,1731898240189,-510.45244229,0.0001,2]
[342458601,1731898240201,-304.33735203,0.0001,2]
[342458602,1731898240213,-430.17347781,0.0001,2]
[342458603,1731898240223,-2375.29591129,0.0001,2]
[342458604,1731898240323,-23526.06271843,0.0001,2]
[342458605,1731898240334,-32266.97004458,0.0001,2]
[342458606,1731898240345,-616.89321857,0.0001,2]
[342458608,1731898243160,-524.60520356,0.0001,2]
[342458609,1731898243174,-6720.35235573,0.0001,2]
[342458610,1731898243185,-2668.27,0.0001,2]
[342458611,1731898243196,-37550.84699968,0.0001,2]
[342458612,1731898243207,-270.98,0.0001,2]
[342458613,1731898243219,-600.23121034,0.0001,2]
[342458614,1731898243231,-1651.31280657,0.0001,2]
[342458616,1731898243368,-326.04779123,0.0001,2]
[342458622,1731898246392,-1893.49499489,0.0001,2]
[342458623,1731898246407,-373.62854235,0.0001,2]
[342458624,1731898246424,-1114.037996,0.0001,2]
[342458625,1731898246439,-10735.91348394,0.0001,2]
[342458626,1731898256794,314.6245,8.941e-05,2]
[342458628,1731898485622,1049.74,8.219e-05,2]
[342458629,1731899129098,400.0,8e-05,2]
[342458630,1731899157688,500.0,8e-05,2]
[342458631,1731899209147,-250.0,9.137e-05,2]
[342458632,1731899209170,-1125.87,9.14e-05,2]
[342458633,1731899209193,-19.77331696,9.154e-05,2]
[342458637,1731899260805,997.25,8.219e-05,2]
[342458638,1731899311653,400.0,8e-05,3]
[342458639,1731899327163,400.0,8e-05,2]
[342458640,1731899389496,400.0,8e-05,2]
[342458644,1731899432186,-400.0,9e-05,3]
[342458645,1731899432196,-980.22668304,9.154e-05,2]
[342458646,1731899432206,-487.16,9.196e-05,2]
[342458647,1731899432216,-150.27,9.198e-05,2]
[342458648,1731899432226,-250.0,9.26e-05,2]
[342458649,1731899432236,-312.84,9.416e-05,2]
[342458650,1731899432246,-300.0,9.638e-05,2]
[342458651,1731899432255,-25081.0,9.639e-05,2]
[342458652,1731899432265,-777.5757,9.674e-05,2]
[342458653,1731899432275,-150.0,9.899e-05,2]
[342458654,1731899432284,-2500.0,9.9e-05,2]
[342458655,1731899432294,-3963.6203739,9.9e-05,2]
[342458656,1731899432306,-11913.79619576,9.9e-05,2]
[342458657,1731899432318,-1157.66053093,9.9e-05,2]
[342458658,1731899432329,-1859.87048133,9.9e-05,2]
[342458659,1731899432340,-9746.02066557,9.9e-05,2]
[342458660,1731899432351,-14927.36994088,9.9e-05,2]
[342458661,1731899432362,-3211.6503843,9.9e-05,2]
[342458662,1731899432374,-371.52,9.9e-05,2]
[342458663,1731899432385,-3987.45282922,9.9e-05,2]
[342458664,1731899432438,-1100.0,9.9e-05,2]
[342458665,1731899432450,-505.95,9.9e-05,2]
[342458666,1731899432461,-615.1,9.9e-05,2]
[342458667,1731899432472,-1973.47855154,9.9e-05,2]
[342458668,1731899432483,-1081.67849063,9.9e-05,2]
[342458669,1731899432494,-91379.96165594,9.9e-05,2]
[342458670,1731899432508,-43620.03837199,9.9e-05,2]
[342458671,1731899432520,-36115.73971806,9.9e-05,2]
[342458679,1731899438201,-137077.12720463,9.9e-05,2]
[342458680,1731899438211,-400.0,9.9e-05,2]
[342458681,1731899438221,-500.0,9.92e-05,2]
[342458682,1731899438231,-1662.118,9.966e-05,2]
[342458683,1731899438240,-1000.0,9.98e-05,2]
[342458684,1731899438251,-1000.0,9.98e-05,3]
[342458685,1731899438261,-177.7040871,9.99e-05,2]
[342458686,1731899438271,-177.70408707,9.99e-05,2]
[342458687,1731899438280,-177.70408707,9.99e-05,2]
[342458688,1731899438290,-177.70408707,9.99e-05,2]
[342458689,1731899438300,-185.7484608,9.992e-05,2]
[342458690,1731899438310,-185.7484608,9.993e-05,2]
[342458691,1731899438319,-185.7484608,9.993e-05,2]
[342458692,1731899438328,-185.7484608,9.993e-05,2]
[342458693,1731899438338,-649.44,9.999e-05,2]
[342458694,1731899438347,-125274.15106202,0.0001,2]
[342458695,1731899438356,-3120.59734862,0.0001,2]
[342458696,1731899438366,-5407081.37606749,0.0001,2]
[342458697,1731899438378,-79271.36429687,0.0001,2]
[342458698,1731899438389,-2118.77764759,0.0001,2]
[342458699,1731899438402,-1998.92856339,0.0001,2]
[342458700,1731899438417,-2296.61744625,0.0001,2]
[342458701,1731899438461,-416.11313073,0.0001,2]
[342458726,1731899440162,-341.16884404,0.0001,2]
[342458727,1731899440175,-5352.24283482,0.0001,2]
[342458728,1731899440186,-1193.60000007,0.0001,2]
[342458729,1731899440198,-28019.2140588,0.0001,2]
[342458730,1731899440407,-31221.04345267,0.0001,2]
[342458731,1731899440419,-25846.28733208,0.0001,2]
[342458757,1731899443840,-400.0,9e-05,3]
[342458758,1731899443850,-1276.54913887,0.0001,2]
[342458759,1731899443861,-682.36978236,0.0001,2]
[342458760,1731899443872,-1829.96652278,0.0001,2]
[342458761,1731899443883,-377.338759,0.0001,2]
[342458762,1731899444552,-155.07147961,0.0001,2]
[342458763,1731899444596,-11196.42772552,0.0001,2]
[342458764,1731899444608,-9018.59284828,0.0001,2]
[342458767,1731899446046,-11415.66389546,0.0001,2]
[342458772,1731899446058,-6132.62161919,0.0001,2]
[342458775,1731899446074,-566.695,0.0001,2]
[342458777,1731899446086,-3400.49119398,0.0001,2]
[342458795,1731899446281,-1214.21456923,0.0001,2]
[342458797,1731899446293,-4403.04167378,0.0001,2]
[342458799,1731899446305,-2394.89673906,0.0001,2]
[342458801,1731899446317,-2327.13018613,0.0001,2]
[342458803,1731899446328,-1947.91392285,0.0001,2]
[342458806,1731899446339,-7073.22343332,0.0001,2]
[342458807,1731899446351,-571.73513335,0.0001,2]
[342458808,1731899446362,-2617.05792377,0.0001,2]
[342458809,1731899446373,-32125.5154073,0.0001,2]
[342458810,1731899446385,-380.17238216,0.0001,2]
[342458811,1731899446396,-21891.00485637,0.0001,2]
[342458812,1731899446409,-9412.7334496,0.0001,2]
[342458813,1731899446420,-14065.23561396,0.0001,2]
[342458814,1731899446432,-5258.1992377,0.0001,2]
[342458815,1731899446443,-62494.66044775,0.0001,2]
[342458816,1731899446455,-14983.6989897,0.0001,2]
[342458817,1731899446466,-11286.168,0.0001,2]
[342458818,1731899446514,-8370.8,0.0001,2]
[342458820,1731899489871,330.06,8e-05,2]
[342458821,1731899829568,-1500.0,9.215e-05,2]
[342458822,1731899829590,-250.0,9.692e-05,2]
[342458823,1731899829611,-300.0,9.789e-05,2]
[342458824,1731899829631,-7546.1778,9.79e-05,2]
[342458825,1731899829652,-1757.7188,9.79e-05,2]
[342458826,1731899829673,-150.0,9.799e-05,2]
[342458827,1731899829694,-1009.02642795,9.8e-05,2]
[342458828,1731899829717,-27657.39308982,9.8e-05,2]
[342458829,1731899962197,947.38,8.219e-05,2]
[342458831,1731900443076,235.99,7.261e-05,2]
[342458840,1731900553116,-1000.0,9e-05,2]
[342458846,1731900605220,1289.06,8.219e-05,2]
[342458858,1731900632398,-1000.0,9.095e-05,2]
[342458859,1731900632408,-250.0,9.141e-05,2]
[342458860,1731900632419,-160.0,9.224e-05,2]
[342458861,1731900632429,-250.0,9.308e-05,2]
[342458862,1731900632443,-300.0,9.709e-05,2]
[342458863,1731900632452,-1345.35486926,9.709e-05,2]
[342458864,1731900632462,-182.01,9.709e-05,2]
[342458865,1731900632471,-362.49,9.71e-05,2]
[342458866,1731900632482,-300.0,9.71e-05,2]
[342458867,1731900632491,-150.0,9.71e-05,2]
[342458868,1731900632501,-362.49,9.71e-05,2]
[342458869,1731900632510,-362.49,9.71e-05,2]
[342458870,1731900632523,-362.49,9.71e-05,2]
[342458871,1731900632532,-362.49,9.71e-05,2]
[342458872,1731900632541,-362.49,9.71e-05,2]
[342458873,1731900632551,-362.49,9.71e-05,2]
[342458874,1731900632560,-1345.35486925,9.71e-05,2]
[342458875,1731900632570,-911.756,9.79e-05,2]
[342458876,1731900632579,-150.99,9.79e-05,2]
[342458877,1731900632589,-150.0,9.799e-05,2]
[342458878,1731900632598,-72342.60691018,9.8e-05,2]
[342458879,1731900632608,-36662.7247,9.8e-05,2]
[342458880,1731900632617,-362.49,9.8e-05,2]
[342458881,1731900632627,-361.95,9.8e-05,2]
[342458882,1731900632650,-165387.0683,9.89e-05,2]
[342458883,1731900632661,-500.0,9.9e-05,2]
[342458884,1731900632672,-160.499166,9.9e-05,2]
[342458885,1731900632682,-332.1734,9.9e-05,2]
[342458886,1731900632692,-1007.0,9.9e-05,2]
[342458887,1731900632702,-500.0,9.92e-05,2]
[342458888,1731900632712,-1096.765,9.922e-05,2]
[342458889,1731900632721,-1463.989,9.966e-05,2]
[342458890,1731900632731,-303.0,9.973e-05,2]
[342458891,1731900632741,-371.49692209,9.992e-05,2]
[342458892,1731900632751,-254.86573668,9.999e-05,2]
[342458893,1731900632762,-19977.14755948,9.999e-05,2]
[342458894,1731900632771,-1287.5141184,9.999e-05,2]
[342458895,1731900632781,-157367.78590715,0.0001,2]
[342458903,1731900633534,-9429.11103209,0.0001,2]
[342458904,1731900633598,-1128.0,0.0001,2]
[342458905,1731900633611,-497.35,0.0001,2]
[342458906,1731900633623,-458.128,0.0001,2]
[342458907,1731900633634,-470.79692717,0.0001,2]
[342458908,1731900633648,-20372.40345529,0.0001,2]
[342458912,1731900638191,-608.71278307,0.0001,2]
[342458913,1731900638329,-1245.37967442,0.0001,2]
[342458914,1731900638474,-793.58809225,0.0001,2]
[342458915,1731900638623,-127164.83177656,0.0001,2]
[342458916,1731900638634,-3120.59734862,0.0001,2]
[342458917,1731900638644,-5405840.13535295,0.0001,2]
[342458918,1731900638656,-612.87082591,0.0001,2]
[342458919,1731900638668,-838.0,0.0001,2]
[342458920,1731900638679,-4685.23140956,0.0001,2]
[342458921,1731900638692,-2442.60539867,0.0001,2]
[342458922,1731900638704,-4483.08577052,0.0001,2]
[342458923,1731900638715,-5821.78240842,0.0001,2]
[342458924,1731900638731,-1798.52974739,0.0001,2]
[342458931,1731900640331,-1993.0,9.922e-05,2]
[342458932,1731900640343,-115468.87099505,0.0001,2]
[342458935,1731900640924,-675.25031017,0.0001,2]
[342458936,1731900640935,-1798.71498928,0.0001,2]
[342458937,1731900640947,-1481.2613624,0.0001,2]
[342458949,1731900643474,-250.27,9.688e-05,2]
[342458950,1731900643485,-864.71607929,0.0001,2]
[342458951,1731900643496,-198215.45000001,0.0001,2]
[342458960,1731900646254,-2192.1224385,0.0001,2]
[342458961,1731900646267,-2905.5331124,0.0001,2]
[342458962,1731900646279,-3329.47780248,0.0001,2]
[342458963,1731900646406,-1124.912038,9.8e-05,2]
[342458964,1731900646418,-650.32550622,9.8e-05,2]
[342458965,1731900646427,-1400.41813278,0.0001,2]
[342458966,1731900646442,-1647.86939363,0.0001,2]
[342458967,1731900646561,-12528.65771347,0.0001,2]
[342458993,1731901380287,1328.36,8.219e-05,2]
[342458998,1731901460646,268.46733804,8.178e-05,2]
[342459000,1731901557727,400.0,8e-05,3]
[342459002,1731901602137,-599.78,9.168e-05,2]
[342459003,1731901602159,-404.40513755,9.205e-05,2]
[342459005,1731901642094,-1095.59486245,9.205e-05,2]
[342459006,1731901642118,-250.0,9.212e-05,2]
[342459007,1731901642141,-1000.0,9.213e-05,2]
[342459008,1731901642164,-3199.35610681,9.293e-05,2]
[342459018,1731901832565,-540.0,9.211e-05,2]
[342459019,1731901832580,-535.47,9.211e-05,2]
[342459025,1731901832844,-859.42630947,9.211e-05,2]
[342459026,1731901832857,-1616.18669621,9.211e-05,2]
[342459027,1731901832871,-8507.41699432,9.211e-05,2]
[342459028,1731901832882,-200.0,9.215e-05,2]
[342459029,1731901832891,-250.0,9.564e-05,2]
[342459030,1731901832902,-400.0,9.6e-05,3]
[342459031,1731901832911,-300.0,9.605e-05,2]
[342459032,1731901832921,-9161.0,9.606e-05,2]
[342459033,1731901832931,-150.0,9.863e-05,2]
[342459034,1731901832941,-160.499166,9.9e-05,2]
[342459035,1731901832951,-335.0158,9.9e-05,2]
[342459036,1731901832961,-500.0,9.92e-05,2]
[342459037,1731901832970,-1171.191,9.966e-05,2]
[342459038,1731901832981,-9999.99,9.966e-05,2]
[342459039,1731901832991,-247.59752939,9.992e-05,2]
[342459040,1731901833005,-649.44,9.999e-05,2]
[342459041,1731901833015,-150.0,9.999e-05,2]
[342459042,1731901833025,-3520.4693102,0.0001,2]
[342459043,1731901833035,-436629.68814117,0.0001,2]
[342459044,1731901833126,-3179.51067861,0.0001,2]
[342459052,1731901838754,-112453.09,0.0001,2]
[342459053,1731901838766,-39647.84941329,0.0001,2]
[342459054,1731901838776,-3168.42237918,0.0001,2]
[342459055,1731901838788,-5493309.29268566,0.0001,2]
[342459056,1731901839051,-12155.9007856,0.0001,2]
[342459058,1731901839470,-2537.92305797,0.0001,2]
[342459059,1731901839483,-1268.56411617,0.0001,2]
[342459060,1731901840744,-6994.72201244,0.0001,2]
[342459061,1731901840772,-5655.91827252,0.0001,2]
[342459062,1731901840784,-987.0319332,0.0001,2]
[342459070,1731901844441,-34347.71070486,0.0001,2]
[342459071,1731901844454,-671.15800876,0.0001,2]
[342459072,1731901844506,-111.57612634,0.0001,2]
[342459080,1731901846684,-2500.0,9.9e-05,2]
[342459081,1731901846694,-604.89849298,0.0001,2]
[342459082,1731901846706,-562.388936,0.0001,2]
[342459084,1731902076468,7428.5482568,8.5e-05,2]
[342459085,1731902319272,150.0,8.502e-05,5]
[342459086,1731902457927,1363.9,8.219e-05,2]
[342459087,1731902849124,-250.0,8.92e-05,2]
[342459088,1731902849154,-250.0,8.986e-05,2]
[342459089,1731902849175,-54.49509693,9e-05,2]
[342459092,1731902962107,-1000.0,8.915e-05,2]
[342459093,1731902962129,-1100.1452,8.948e-05,2]
[342459094,1731902962152,-691.58490307,9e-05,2]
[342459095,1731902962178,-613.09183493,9e-05,2]
[342459103,1731903033946,-226.59,8.853e-05,2]
[342459104,1731903033958,-300.0,9.047e-05,2]
[342459105,1731903033970,-103.26879507,9.048e-05,2]
[342459108,1731903035085,-7364.82120493,9.048e-05,2]
[342459109,1731903035097,-2903.77161088,9.048e-05,2]
[342459110,1731903035107,-2903.77161087,9.066e-05,2]
[342459111,1731903035118,-195.36,9.066e-05,2]
[342459112,1731903035128,-607.34,9.079e-05,2]
[342459113,1731903035138,-320.17,9.188e-05,2]
[342459114,1731903035148,-316.22,9.211e-05,2]
[342459115,1731903035158,-245.263608,9.339e-05,2]
[342459116,1731903035168,-361.0,9.378e-05,2]
[342459117,1731903035183,-746.08,9.4e-05,2]
[342459118,1731903035193,-746.08,9.5e-05,2]
[342459119,1731903035202,-746.08,9.6e-05,2]
[342459120,1731903035212,-384.13,9.67e-05,2]
[342459121,1731903035222,-603.74,9.67e-05,2]
[342459122,1731903035232,-161.9788,9.8e-05,2]
[342459123,1731903035242,-746.08,9.8e-05,2]
[342459124,1731903035252,-2500.0,9.8e-05,2]
[342459125,1731903035264,-746.08,9.8e-05,2]
[342459126,1731903035274,-150.0,9.821e-05,2]
[342459127,1731903035284,-818.0,9.822e-05,2]
[342459128,1731903035295,-1263.648,9.822e-05,2]
[342459129,1731903035304,-3747.0,9.822e-05,2]
[342459130,1731903035313,-909.0,9.822e-05,2]
[342459131,1731903035322,-3492.0,9.822e-05,2]
[342459132,1731903035332,-12171.97439388,9.89e-05,2]
[342459133,1731903035357,-604.32337629,9.89e-05,2]
[342459134,1731903035369,-10332.049264,9.89e-05,2]
[342459135,1731903035388,-1396.50221221,9.89e-05,2]
[342459136,1731903035400,-16644.00739381,9.89e-05,2]
[342459137,1731903035411,-4310.942,9.9e-05,2]
[342459138,1731903035420,-6398.8,9.9e-05,2]
[342459139,1731903035429,-15999.2727,9.9e-05,2]
[342459140,1731903035439,-239393.7659,9.9e-05,2]
[342459141,1731903035450,-6578.0,9.9e-05,2]
[342459142,1731903035459,-151.091,9.9e-05,2]
[342459143,1731903035470,-746.08,9.9e-05,2]
[342459144,1731903035479,-420.0,9.952e-05,2]
[342459145,1731903035489,-1022.902,9.966e-05,2]
[342459146,1731903035498,-177.70408707,9.99e-05,2]
[342459147,1731903035509,-622.38,9.999e-05,2]
[342459148,1731903035519,-85203.58553339,0.0001,2]
[342459149,1731903035531,-613.77,0.0001,2]
[342459150,1731903035547,-11096.35975076,0.0001,2]
[342459151,1731903035559,-398.2,0.0001,2]
[342459152,1731903035582,-7427.6,0.0001,2]
[342459154,1731903037475,-1264.43557993,0.0001,2]
[342459155,1731903037583,-1002.22190998,0.0001,2]
[342459156,1731903037595,-2285.44611446,0.0001,2]
[342459157,1731903037607,-2716.40615873,0.0001,2]
[342459158,1731903037619,-651.52929213,0.0001,2]
[342459159,1731903037691,-33885.60899322,0.0001,2]
[342459160,1731903037700,-3168.42237918,0.0001,2]
[342459161,1731903037710,-5499071.53310573,0.0001,2]
[342459162,1731903037722,-800.0,0.0001,2]
[342459163,1731903037733,-341.38082856,0.0001,2]
[342459164,1731903037758,-273.606,0.0001,2]
[342459168,1731903039394,-733.83,0.0001,2]
[342459169,1731903039551,-2264.5201696,0.0001,2]
[342459170,1731903039563,-403.94991799,0.0001,2]
[342459185,1731903042392,-426.87428325,0.0001,2]
[342459189,1731903042443,-60428.53505807,0.0001,2]
[342459190,1731903042498,-1128.7920254,0.0001,2]
[342459191,1731903042559,-8543.10692457,0.0001,2]
[342459192,1731903042571,-6480.04352762,0.0001,2]
[342459193,1731903042607,-5031.82215096,0.0001,2]
[342459194,1731903042618,-7654.00487754,0.0001,2]
[342459214,1731903045580,-571.42986197,0.0001,2]
[342459215,1731903045592,-1038.60943138,0.0001,2]
[342459216,1731903045605,-666.94911015,0.0001,2]
[342459217,1731903045639,-1300.27164834,0.0001,2]
[342459218,1731903045744,-378.23913912,0.0001,2]
[342459219,1731903045756,-717.88,0.0001,2]